[Event "SUNWAY"]
[Date "2016.12.22"]
[Round "8.7"]
[White "Vorobiov, Evgeny E."]
[Black "Romanishin, Oleg M"]
[Result "1/2-1/2"]
[WhiteElo "2583"]
[BlackElo "2463"]
[ECO "C58"]
[WhiteFed "RUS"]
[BlackFed "UKR"]
[FCGameId "-1767735974"]
[TimeControl "5400+30"]

1. e4 e5 2. Nf3 Nc6 3. Bc4 {[%clk 1:31:41]} Nf6 {[%clk 1:31:35]} 4. Ng5  {[%clk 1:31:56]} d5 5. exd5 {[%clk 1:32:22]} Na5 {[%clk 1:31:54]} 6. Bb5+  {[%clk 1:32:22]} c6 {[%clk 1:27:09]} 7. dxc6 {[%clk 1:32:41]} bxc6  {[%clk 1:25:55]} 8. Bd3 {[%clk 1:31:01]} h6 {[%clk 1:26:15]} 9. Ne4  {[%clk 1:31:18]} Nd5 {[%clk 1:20:46]} 10. Ng3 {[%clk 1:28:26]} g6 11. O-O Bg7  {[%clk 1:17:41]} 12. Re1 {[%clk 1:28:21]} O-O {[%clk 1:05:03]} 13. Bf1  {[%clk 1:27:26]} c5 {[%clk 1:04:09]} 14. Nc3 {[%clk 1:14:59]} Nf4  {[%clk 1:00:18]} 15. Na4 {[%clk 1:06:31]} Qc7 {[%clk 0:55:00]} 16. Ne4  {[%clk 0:57:14]} Ne6 {[%clk 0:46:22]} 17. c3 {[%clk 0:56:52]} Nb7  {[%clk 0:43:09]} 18. c4 {[%clk 0:53:22]} Nd6 {[%clk 0:41:14]} 19. d3  {[%clk 0:46:25]} Rd8 {[%clk 0:31:58]} 20. Bd2 {[%clk 0:44:26]} Bb7  {[%clk 0:30:58]} 21. Nac3 {[%clk 0:43:16]} Nf5 {[%clk 0:28:53]} 22. Rc1  {[%clk 0:29:19]} Qe7 23. a3 1/2-1/2

[Event "SUNWAY"]
[Date "2016.12.22"]
[Round "8.8"]
[White "Golubov, Saveliy"]
[Black "Peralta, Fernando"]
[Result "1/2-1/2"]
[WhiteElo "2490"]
[BlackElo "2574"]
[ECO "D04"]
[WhiteFed "RUS"]
[BlackFed "ARG"]
[FCGameId "1467136274"]
[TimeControl "5400+30"]

1. d4 {[%clk 1:30:49]} Nf6 {[%clk 1:30:47]} 2. Nf3 {[%clk 1:31:08]} d5  {[%clk 1:31:08]} 3. e3 {[%clk 1:31:19]} c5 {[%clk 1:29:57]} 4. Bd3  {[%clk 1:27:15]} Nc6 {[%clk 1:25:30]} 5. O-O {[%clk 1:23:55]} Bg4  {[%clk 1:23:41]} 6. c3 {[%clk 1:18:47]} e6 {[%clk 1:23:15]} 7. Nbd2  {[%clk 1:18:45]} cxd4 {[%clk 1:15:24]} 8. exd4 {[%clk 1:18:59]} Bd6  {[%clk 1:13:52]} 9. Re1 {[%clk 1:18:22]} O-O {[%clk 1:06:27]} 10. Nf1  {[%clk 1:15:45]} Re8 {[%clk 1:06:36]} 11. Bg5 {[%clk 1:12:10]} h6  {[%clk 0:57:15]} 12. Bh4 {[%clk 1:11:53]} e5 {[%clk 0:57:25]} 13. dxe5  {[%clk 1:11:25]} Nxe5 {[%clk 0:56:13]} 14. Be2 {[%clk 1:11:20]} Nxf3+  {[%clk 0:55:46]} 15. Bxf3 {[%clk 1:11:41]} Rxe1 {[%clk 0:56:09]} 16. Qxe1  {[%clk 1:12:03]} Bxf3 {[%clk 0:56:35]} 17. gxf3 {[%clk 1:12:22]} Bf8 18. Qd2  {[%clk 1:06:02]} Qb6 {[%clk 0:39:45]} 19. Bxf6 {[%clk 0:59:45]} Qxf6  {[%clk 0:40:08]} 20. Qxd5 {[%clk 0:59:58]} Qb6 {[%clk 0:36:35]} 21. Qd2  {[%clk 0:51:42]} Rd8 {[%clk 0:31:33]} 22. Qe2 {[%clk 0:50:27]} a5  {[%clk 0:30:56]} 23. Ng3 {[%clk 0:49:09]} a4 {[%clk 0:30:25]} 24. a3  {[%clk 0:48:37]} Rd5 {[%clk 0:29:58]} 25. Rc1 {[%clk 0:47:00]} Qd8  {[%clk 0:23:46]} 26. Rc2 {[%clk 0:36:15]} h5 {[%clk 0:21:20]} 27. Ne4  {[%clk 0:30:33]} f5 {[%clk 0:12:51]} 28. Nd2 {[%clk 0:29:19]} Rd6  {[%clk 0:11:08]} 29. f4 {[%clk 0:25:23]} Qh4 {[%clk 0:09:09]} 30. Qf3  {[%clk 0:23:01]} Rg6+ {[%clk 0:09:03]} 31. Kh1 {[%clk 0:23:11]} Bd6  {[%clk 0:09:18]} 32. Nf1 {[%clk 0:21:58]} Qxf4 {[%clk 0:05:50]} 33. Qxf4  {[%clk 0:22:10]} Bxf4 {[%clk 0:06:18]} 34. Ng3 {[%clk 0:22:30]} Bxg3  {[%clk 0:05:07]} 35. hxg3 {[%clk 0:22:41]} Kf7 {[%clk 0:02:58]} 36. Rd2  {[%clk 0:22:09]} Rb6 {[%clk 0:02:51]} 37. Kg2 {[%clk 0:21:55]} g5  {[%clk 0:02:55]} 38. Rd4 {[%clk 0:17:13]} Rxb2 {[%clk 0:03:08]} 39. Rxa4  {[%clk 0:17:38]} Rb3 {[%clk 0:01:57]} 40. Rc4 {[%clk 0:44:26]} Rxa3  {[%clk 0:30:35]} 41. Rc7+ {[%clk 0:44:37]} Ke6 {[%clk 0:21:12]} 42. Rxb7  {[%clk 0:42:30]} Rxc3 {[%clk 0:21:34]} 43. Rb6+ {[%clk 0:42:39]} Ke5  {[%clk 0:21:09]} 44. Rb5+ {[%clk 0:42:35]} Ke6 {[%clk 0:21:32]} 1/2-1/2

[Event "SUNWAY"]
[Date "2016.12.22"]
[Round "8.9"]
[White "Epishin, Vladimir"]
[Black "Santos Ruiz, Miguel"]
[Result "1/2-1/2"]
[WhiteElo "2571"]
[BlackElo "2484"]
[ECO "A06"]
[WhiteFed "RUS"]
[BlackFed "ESP"]
[FCGameId "-1943214263"]
[TimeControl "5400+30"]

1. Nf3 d5 2. e3 Nf6 3. c4 e6 4. b3 c5 5. g3 d4 6. exd4 cxd4 7. Bg2 Nc6 8. O-O  Bd6 9. d3 O-O 10. Ba3 Qe7 11. Qc1 e5 12. c5 Bc7 13. b4 a5 14. b5 Nb4 15. Bxb4  axb4 16. Re1 Nd7 17. b6 Bb8 18. c6 Nxb6 19. Nxd4 Qd8 20. Nc2 Nd5 21. cxb7 Bxb7  22. Nd2 Ra7 23. Nc4 Qf6 24. Qd2 Bd6 25. d4 exd4 26. Nxd6 Qxd6 27. Qxd4 Ra5 28.  Rab1 Qc7 29. Nxb4 Nxb4 30. Rxb4 1/2-1/2

[Event "SUNWAY"]
[Date "2016.12.22"]
[Round "8.10"]
[White "Minko, Vladimir"]
[Black "Lopez Martinez, Josep Manuel"]
[Result "0-1"]
[WhiteElo "2429"]
[BlackElo "2552"]
[ECO "A40"]
[WhiteFed "RUS"]
[BlackFed "ESP"]
[FCGameId "1471827951"]
[TimeControl "5400+30"]

1. d4 {[%clk 1:22:12]} e6 {[%clk 1:26:22]} 2. c4 {[%clk 1:22:21]} d5  {[%clk 1:25:50]} 3. Nf3 {[%clk 1:22:43]} a6 {[%clk 1:25:21]} 4. g3  {[%clk 1:21:51]} dxc4 {[%clk 1:24:55]} 5. Bg2 {[%clk 1:21:55]} Nc6  {[%clk 1:21:40]} 6. O-O {[%clk 1:20:48]} Rb8 {[%clk 1:21:29]} 7. e3 b5  {[%clk 1:16:05]} 8. b3 {[%clk 1:11:03]} cxb3 {[%clk 1:15:54]} 9. axb3  {[%clk 1:11:29]} Bd6 10. e4 {[%clk 1:03:13]} Nge7 {[%clk 1:11:35]} 11. Qc2  {[%clk 0:56:01]} h6 {[%clk 1:01:23]} 12. Bb2 {[%clk 0:50:21]} O-O  {[%clk 0:59:53]} 13. Rd1 {[%clk 0:50:10]} Qe8 {[%clk 0:58:06]} 14. Nbd2  {[%clk 0:48:16]} Bb7 {[%clk 0:51:59]} 15. Nf1 {[%clk 0:44:15]} f5  {[%clk 0:41:30]} 16. exf5 {[%clk 0:35:13]} Nxf5 {[%clk 0:41:07]} 17. Qe2  {[%clk 0:30:10]} Nb4 {[%clk 0:36:41]} 18. Ne5 {[%clk 0:29:42]} Bxg2  {[%clk 0:34:24]} 19. Kxg2 {[%clk 0:30:06]} Bxe5 {[%clk 0:34:07]} 20. Qxe5  {[%clk 0:29:01]} Qc6+ {[%clk 0:34:15]} 21. Kg1 {[%clk 0:28:49]} Nd5  {[%clk 0:33:43]} 22. Rdc1 {[%clk 0:26:34]} Qb6 {[%clk 0:33:54]} 23. Nd2  {[%clk 0:21:52]} Nfe7 {[%clk 0:29:40]} 24. Qe2 {[%clk 0:19:09]} Nf5  {[%clk 0:25:46]} 25. Nf3 {[%clk 0:17:06]} Rbd8 {[%clk 0:25:09]} 26. Ne5  {[%clk 0:14:15]} Rd6 {[%clk 0:24:01]} 27. Rc5 {[%clk 0:14:39]} Nb4  {[%clk 0:23:00]} 28. Rac1 {[%clk 0:13:33]} Nd5 {[%clk 0:17:48]} 29. Qe4  {[%clk 0:11:10]} Nfe7 {[%clk 0:17:32]} 30. Ra1 {[%clk 0:06:47]} Nf6  {[%clk 0:11:44]} 31. Qc2 {[%clk 0:05:43]} Ned5 {[%clk 0:11:49]} 32. Rc1  {[%clk 0:05:01]} Nd7 {[%clk 0:09:24]} 33. Rc6 {[%clk 0:02:35]} Rxc6  {[%clk 0:08:38]} 34. Nxc6 {[%clk 0:03:00]} N7f6 {[%clk 0:06:59]} 35. Qg6  {[%clk 0:02:13]} Qb7 {[%clk 0:04:56]} 36. Ne5 {[%clk 0:00:49]} Ne7  {[%clk 0:04:56]} 37. Qc2 {[%clk 0:00:57]} Ne4 {[%clk 0:04:59]} 38. Qxc7  {[%clk 0:00:51]} Qxc7 {[%clk 0:04:58]} 39. Rxc7 {[%clk 0:01:20]} Rxf2  {[%clk 0:03:47]} 40. Rxe7 {[%clk 0:30:38]} Rxb2 {[%clk 0:34:08]} 41. Rxe6  {[%clk 0:27:27]} Nc3 {[%clk 0:34:10]} 42. Rxa6 {[%clk 0:25:19]} Ne2+  {[%clk 0:34:06]} 43. Kf2 {[%clk 0:25:04]} Nxd4+ {[%clk 0:34:24]} 44. Ke3 Nxb3  {[%clk 0:32:45]} 45. Ra8+ {[%clk 0:25:35]} Kh7 {[%clk 0:33:07]} 46. h4 Nd2 47.  g4 {[%clk 0:14:53]} Nc4+ {[%clk 0:30:42]} 48. Nxc4 {[%clk 0:11:40]} bxc4  {[%clk 0:31:05]} 49. Rc8 {[%clk 0:11:06]} Rc2 {[%clk 0:30:13]} 50. h5  {[%clk 0:03:04]} c3 {[%clk 0:30:20]} 51. Rc4 Rg2 {[%clk 0:29:18]} 52. Rxc3  {[%clk 0:00:41]} Rg3+ {[%clk 0:29:22]} 53. Kd2 {[%clk 0:01:02]} Rxg4  {[%clk 0:29:29]} 54. Ke2 {[%clk 0:00:37]} Rg5 {[%clk 0:29:08]} 55. Rh3  {[%clk 0:01:03]} Rf5 {[%clk 0:29:33]} 56. Ke3 {[%clk 0:01:07]} Kg8  {[%clk 0:29:55]} 57. Ke4 {[%clk 0:01:15]} Rf1 {[%clk 0:30:06]} 58. Ra3  {[%clk 0:00:52]} Rg1 {[%clk 0:29:09]} 59. Ra8+ {[%clk 0:00:40]} Kf7  {[%clk 0:29:22]} 60. Ra7+ {[%clk 0:01:06]} Ke6 {[%clk 0:29:43]} 61. Ra6+  {[%clk 0:01:32]} Kd7 {[%clk 0:30:06]} 62. Kf5 {[%clk 0:00:56]} Rg5+  {[%clk 0:30:28]} 63. Kf4 {[%clk 0:00:57]} Ke7 {[%clk 0:30:51]} 64. Ra7+  {[%clk 0:00:37]} Kf8 {[%clk 0:31:12]} 65. Ra8+ {[%clk 0:00:42]} Kf7 66. Ra7+  {[%clk 0:00:57]} Kg8 {[%clk 0:31:57]} 67. Kf3 {[%clk 0:00:36]} Rxh5  {[%clk 0:32:15]} 68. Kg4 {[%clk 0:01:02]} Rb5 {[%clk 0:32:03]} 69. Kh4  {[%clk 0:01:27]} Kh7 {[%clk 0:31:19]} 70. Ra6 {[%clk 0:01:43]} Rb4+  {[%clk 0:30:07]} 71. Kh3 {[%clk 0:02:12]} g5 {[%clk 0:29:50]} 72. Kg3  {[%clk 0:02:21]} Rf4 {[%clk 0:29:49]} 73. Rb6 {[%clk 0:02:45]} Kg7  {[%clk 0:30:12]} 74. Ra6 {[%clk 0:03:12]} Rf6 {[%clk 0:30:34]} 75. Ra5  {[%clk 0:03:36]} Kg6 {[%clk 0:30:37]} 76. Rb5 {[%clk 0:03:48]} Ra6  {[%clk 0:30:08]} 77. Kg4 {[%clk 0:04:11]} h5+ {[%clk 0:30:19]} 78. Kg3  {[%clk 0:04:37]} Ra3+ {[%clk 0:30:19]} 79. Kg2 {[%clk 0:05:01]} h4  {[%clk 0:30:38]} 80. Rb4 {[%clk 0:05:20]} Kh5 {[%clk 0:30:42]} 81. Rc4  {[%clk 0:05:30]} Ra2+ {[%clk 0:30:43]} 82. Kg1 {[%clk 0:04:38]} h3  {[%clk 0:30:39]} 83. Rb4 {[%clk 0:03:12]} g4 {[%clk 0:30:45]} 84. Rb3  {[%clk 0:01:49]} Ra4 {[%clk 0:29:58]} 85. Rc3 {[%clk 0:00:37]} Kh4 86. Rb3  {[%clk 0:00:31]} Ra1+ {[%clk 0:29:54]} 0-1

[Event "SUNWAY"]
[Date "2016.12.22"]
[Round "8.11"]
[White "Anurag, Mhamal"]
[Black "Burmakin, Vladimir"]
[Result "1/2-1/2"]
[WhiteElo "2423"]
[BlackElo "2535"]
[ECO "A15"]
[WhiteFed "IND"]
[BlackFed "RUS"]
[FCGameId "-1310176674"]
[TimeControl "5400+30"]

1. c4 {[%clk 1:21:40]} Nf6 {[%clk 1:29:36]} 2. g3 {[%clk 1:22:00]} c6  {[%clk 1:29:45]} 3. Bg2 {[%clk 1:22:02]} d5 {[%clk 1:30:10]} 4. Nf3  {[%clk 1:22:19]} Bf5 {[%clk 1:30:31]} 5. cxd5 {[%clk 1:20:11]} cxd5  {[%clk 1:30:56]} 6. Qb3 {[%clk 1:20:35]} Qb6 {[%clk 1:31:07]} 7. Qxb6  {[%clk 1:21:00]} axb6 {[%clk 1:31:32]} 8. Nc3 {[%clk 1:21:19]} Bd7  {[%clk 1:31:41]} 9. d3 {[%clk 1:12:37]} e6 {[%clk 1:31:52]} 10. Bf4  {[%clk 1:12:01]} Bc5 {[%clk 1:28:45]} 11. O-O {[%clk 1:10:52]} O-O 12. a3 Rc8  {[%clk 1:22:28]} 13. Rac1 {[%clk 0:48:44]} Nc6 {[%clk 1:22:17]} 14. e4  {[%clk 0:48:00]} h6 {[%clk 1:11:57]} 15. exd5 {[%clk 0:31:37]} Nxd5  {[%clk 1:12:00]} 16. Nxd5 {[%clk 0:32:04]} exd5 {[%clk 1:12:25]} 17. Ne5  {[%clk 0:20:12]} Be6 {[%clk 1:11:17]} 18. Nxc6 {[%clk 0:19:03]} Rxc6  {[%clk 1:09:04]} 19. Rfd1 {[%clk 0:13:31]} Bd4 {[%clk 1:07:21]} 20. Rxc6  {[%clk 0:12:27]} bxc6 {[%clk 1:07:48]} 21. Rd2 {[%clk 0:12:45]} c5  {[%clk 1:02:20]} 22. h4 {[%clk 0:09:34]} Kf8 {[%clk 0:55:23]} 23. Be3  {[%clk 0:07:44]} Ra4 {[%clk 0:55:37]} 24. Bf3 {[%clk 0:07:44]} Bxe3  {[%clk 0:55:37]} 25. fxe3 {[%clk 0:08:13]} d4 {[%clk 0:55:48]} 26. Kf2  {[%clk 0:07:37]} g5 {[%clk 0:53:47]} 27. hxg5 {[%clk 0:08:02]} hxg5  {[%clk 0:54:04]} 28. Bd1 {[%clk 0:08:18]} dxe3+ {[%clk 0:53:54]} 29. Kxe3  {[%clk 0:08:46]} Rd4 {[%clk 0:54:05]} 30. b4 {[%clk 0:08:58]} f5  {[%clk 0:54:21]} 31. bxc5 {[%clk 0:07:00]} bxc5 {[%clk 0:54:44]} 32. Rc2  {[%clk 0:06:11]} f4+ {[%clk 0:53:16]} 33. gxf4 {[%clk 0:06:39]} gxf4+  {[%clk 0:53:35]} 34. Ke2 {[%clk 0:06:19]} c4 {[%clk 0:51:06]} 35. Rc3  {[%clk 0:03:43]} cxd3+ {[%clk 0:40:03]} 36. Kd2 {[%clk 0:04:12]} Bf5  {[%clk 0:37:51]} 37. Rc5 {[%clk 0:02:08]} Be4 {[%clk 0:30:50]} 38. Kc3 Rd7  {[%clk 0:28:24]} 39. Rc4 {[%clk 0:00:35]} Re7 {[%clk 0:26:32]} 40. Bf3  {[%clk 0:30:36]} 1/2-1/2

[Event "SUNWAY"]
[Date "2016.12.22"]
[Round "8.12"]
[White "Krishna Teja, N"]
[Black "Granda Zuniga, Julio E"]
[Result "0-1"]
[WhiteElo "2253"]
[BlackElo "2646"]
[ECO "A06"]
[WhiteFed "IND"]
[BlackFed "PER"]
[FCGameId "1002006258"]
[TimeControl "5400+30"]

1. Nf3 {[%clk 1:30:48]} d5 {[%clk 1:30:13]} 2. d4 {[%clk 1:31:14]} c6  {[%clk 1:30:05]} 3. e3 {[%clk 1:30:51]} Bg4 {[%clk 1:30:16]} 4. c4  {[%clk 1:31:16]} e6 {[%clk 1:28:48]} 5. Qb3 {[%clk 1:31:28]} Qb6  {[%clk 1:29:10]} 6. Ne5 {[%clk 1:30:57]} Bf5 {[%clk 1:29:20]} 7. Nc3  {[%clk 1:29:23]} Nf6 {[%clk 1:29:19]} 8. Bd2 {[%clk 1:27:20]} Nbd7  {[%clk 1:27:45]} 9. Nxd7 {[%clk 1:24:55]} Kxd7 {[%clk 1:23:11]} 10. Na4  {[%clk 1:24:39]} Qxb3 {[%clk 1:23:26]} 11. axb3 {[%clk 1:25:06]} Bd6  {[%clk 1:23:46]} 12. c5 {[%clk 1:24:41]} Bc7 {[%clk 1:24:13]} 13. b4  {[%clk 1:24:56]} e5 {[%clk 1:20:12]} 14. f3 {[%clk 1:25:18]} Rae8  {[%clk 1:18:20]} 15. Kf2 {[%clk 1:25:36]} a6 {[%clk 1:17:11]} 16. Be2  {[%clk 1:20:15]} e4 {[%clk 1:17:03]} 17. f4 {[%clk 1:15:40]} h5 {[%clk 1:17:08]}  18. Nc3 {[%clk 1:14:19]} Reg8 {[%clk 1:17:04]} 19. g3 {[%clk 1:09:25]} g5  {[%clk 1:16:08]} 20. h4 {[%clk 1:09:24]} gxf4 {[%clk 1:15:53]} 21. exf4  {[%clk 1:09:29]} Bg4 {[%clk 1:15:08]} 22. Bf1 {[%clk 1:07:28]} Rg6  {[%clk 1:11:59]} 23. Rg1 {[%clk 1:04:47]} Rhg8 {[%clk 1:11:25]} 24. Re1  {[%clk 1:03:03]} Bd8 {[%clk 1:09:18]} 25. Be3 {[%clk 0:59:58]} Ne8  {[%clk 1:09:14]} 26. Rh1 {[%clk 0:54:08]} Ng7 {[%clk 1:05:07]} 27. Bh3  {[%clk 0:54:26]} Nf5 {[%clk 1:03:41]} 28. Ne2 {[%clk 0:54:36]} Bf6  {[%clk 0:32:22]} 29. Bxg4 {[%clk 0:50:16]} Rxg4 {[%clk 0:31:14]} 30. Rh3  {[%clk 0:50:40]} Kc7 {[%clk 0:29:04]} 31. Ra1 {[%clk 0:48:22]} Kb8  {[%clk 0:29:26]} 32. Ra3 {[%clk 0:48:13]} Ka7 {[%clk 0:29:40]} 33. Ra2  {[%clk 0:45:16]} Nxg3 {[%clk 0:29:17]} 34. Nxg3 {[%clk 0:37:47]} Rxg3  {[%clk 0:29:41]} 35. Rxg3 {[%clk 0:36:40]} Bxh4 {[%clk 0:30:09]} 36. Ra1  {[%clk 0:37:00]} Rxg3 {[%clk 0:29:31]} 37. Ra3 Rg8+ 0-1

[Event "SUNWAY"]
[Date "2016.12.22"]
[Round "8.13"]
[White "Krishna C R G"]
[Black "Postny, Evgeny"]
[Result "0-1"]
[WhiteElo "2390"]
[BlackElo "2620"]
[ECO "D70"]
[WhiteFed "IND"]
[BlackFed "ISR"]
[FCGameId "-1009261586"]
[TimeControl "5400+30"]

1. d4 {[%clk 1:30:56]} d5 {[%clk 1:30:41]} 2. c4 {[%clk 1:31:19]} c6  {[%clk 1:31:06]} 3. Nf3 {[%clk 1:31:41]} Nf6 {[%clk 1:31:30]} 4. Nbd2  {[%clk 1:30:24]} Bf5 {[%clk 1:31:25]} 5. Nh4 {[%clk 1:29:33]} Be4  {[%clk 1:31:47]} 6. Qb3 {[%clk 1:23:07]} Qb6 7. Nxe4 {[%clk 1:04:37]} Nxe4  {[%clk 1:29:19]} 8. Qxb6 {[%clk 0:53:17]} axb6 {[%clk 1:29:43]} 9. e3  {[%clk 0:53:40]} e6 10. Bd3 {[%clk 0:50:11]} Nd7 {[%clk 1:22:58]} 11. Nf3 Be7  {[%clk 1:22:16]} 12. Ke2 {[%clk 0:44:19]} O-O {[%clk 1:21:19]} 13. Bd2  {[%clk 0:43:26]} Nd6 14. cxd5 {[%clk 0:38:18]} exd5 {[%clk 1:13:25]} 15. Rhc1  {[%clk 0:38:37]} b5 {[%clk 1:10:21]} 16. Bb4 {[%clk 0:33:34]} Rfe8 17. Bxd6  {[%clk 0:30:37]} Bxd6 {[%clk 1:10:50]} 18. a3 {[%clk 0:29:38]} Nb6  {[%clk 1:08:10]} 19. Rab1 {[%clk 0:29:32]} g6 {[%clk 1:02:23]} 20. g3  {[%clk 0:29:10]} Kg7 {[%clk 1:02:10]} 21. Rc2 {[%clk 0:21:41]} Re7 22. g4 Nd7  {[%clk 0:51:52]} 23. Rg1 {[%clk 0:20:33]} Nf6 {[%clk 0:50:49]} 24. h3  {[%clk 0:20:42]} Ne4 {[%clk 0:44:55]} 25. Bxe4 {[%clk 0:18:26]} Rxe4 26. Kd3  {[%clk 0:17:13]} Re7 {[%clk 0:42:30]} 27. Nd2 {[%clk 0:16:51]} Rf8  {[%clk 0:42:39]} 28. Rcc1 f6 {[%clk 0:35:28]} 29. Rc2 {[%clk 0:10:24]} Kf7  {[%clk 0:33:35]} 30. Rcc1 {[%clk 0:08:06]} Ke6 {[%clk 0:33:18]} 31. Ra1  {[%clk 0:06:30]} Ra8 {[%clk 0:31:14]} 32. Rge1 {[%clk 0:04:32]} Kd7  {[%clk 0:31:21]} 33. Rac1 {[%clk 0:04:43]} Rae8 {[%clk 0:27:03]} 34. Ra1  {[%clk 0:02:52]} Ra8 {[%clk 0:27:19]} 35. Rg1 {[%clk 0:02:05]} b6  {[%clk 0:26:57]} 36. e4 c5 {[%clk 0:13:54]} 37. exd5 {[%clk 0:02:39]} c4+  {[%clk 0:14:21]} 38. Kc3 {[%clk 0:01:19]} Re2 {[%clk 0:14:40]} 39. Rae1 Rae8  {[%clk 0:12:53]} 40. Rxe2 {[%clk 0:30:57]} Rxe2 41. f3 {[%clk 0:21:37]} Bh2  {[%clk 0:35:41]} 42. Rd1 {[%clk 0:14:05]} Bf4 {[%clk 0:33:59]} 43. Ne4  {[%clk 0:10:33]} f5 {[%clk 0:32:21]} 44. gxf5 {[%clk 0:10:21]} gxf5  {[%clk 0:32:45]} 45. Nf6+ {[%clk 0:09:17]} Kd6 {[%clk 0:30:03]} 46. Nxh7  {[%clk 0:06:26]} Bg3 {[%clk 0:28:03]} 47. a4 {[%clk 0:05:02]} Re3+  {[%clk 0:21:59]} 48. Kd2 {[%clk 0:02:20]} Bf4 {[%clk 0:21:34]} 49. axb5  {[%clk 0:02:03]} Re7+ {[%clk 0:21:32]} 50. Kc3 {[%clk 0:02:28]} Rxh7  {[%clk 0:21:58]} 51. Rg1 {[%clk 0:02:30]} Kxd5 {[%clk 0:21:41]} 52. Rg8  {[%clk 0:02:56]} Rxh3 {[%clk 0:21:48]} 0-1

[Event "SUNWAY"]
[Date "2016.12.22"]
[Round "8.14"]
[White "Sunilduth Lyna, Narayanan"]
[Black "Lorenzo De La Riva, Lazaro"]
[Result "0-1"]
[WhiteElo "2541"]
[BlackElo "2373"]
[ECO "A57"]
[WhiteFed "IND"]
[BlackFed "ESP"]
[FCGameId "-1199477339"]
[TimeControl "5400+30"]

1. d4 {[%clk 1:30:56]} Nf6 {[%clk 1:30:26]} 2. c4 {[%clk 1:31:20]} c5  {[%clk 1:30:12]} 3. d5 {[%clk 1:31:43]} b5 {[%clk 1:30:37]} 4. Nf3  {[%clk 1:30:18]} g6 {[%clk 1:29:03]} 5. Qc2 bxc4 {[%clk 1:22:32]} 6. e4  {[%clk 1:31:00]} d6 {[%clk 1:22:59]} 7. Bxc4 {[%clk 1:31:25]} Bg7  {[%clk 1:23:25]} 8. O-O {[%clk 1:31:37]} O-O {[%clk 1:23:45]} 9. h3  {[%clk 1:32:05]} Na6 {[%clk 1:23:54]} 10. Nc3 {[%clk 1:28:13]} Nd7  {[%clk 1:19:21]} 11. Bf4 Nb6 {[%clk 1:12:53]} 12. Be2 {[%clk 1:26:38]} Nc7 13.  a4 {[%clk 1:15:49]} a5 {[%clk 1:01:03]} 14. Rad1 {[%clk 1:15:46]} f6 15. Rfe1  {[%clk 1:13:13]} Bd7 {[%clk 0:49:29]} 16. b3 {[%clk 1:10:52]} Qe8  {[%clk 0:49:14]} 17. Qc1 {[%clk 1:08:45]} Kh8 {[%clk 0:42:41]} 18. Bg3  {[%clk 1:02:27]} Qf7 {[%clk 0:39:34]} 19. h4 {[%clk 0:52:07]} Rfc8  {[%clk 0:39:06]} 20. Nd2 {[%clk 0:46:39]} Bh6 {[%clk 0:37:28]} 21. Qa1  {[%clk 0:38:33]} Bg7 {[%clk 0:35:50]} 22. Nc4 {[%clk 0:36:36]} Nxc4  {[%clk 0:25:45]} 23. Bxc4 {[%clk 0:37:02]} Rab8 {[%clk 0:25:08]} 24. Qc1  {[%clk 0:36:27]} Rb4 {[%clk 0:24:06]} 25. Bf4 {[%clk 0:35:29]} Rcb8  {[%clk 0:21:34]} 26. Bd2 {[%clk 0:35:03]} R4b7 {[%clk 0:20:27]} 27. Ne2  {[%clk 0:35:07]} Ra7 {[%clk 0:20:11]} 28. Bc3 {[%clk 0:32:58]} Na8  {[%clk 0:16:56]} 29. Qd2 {[%clk 0:33:18]} Nb6 {[%clk 0:17:17]} 30. Bd3  {[%clk 0:33:44]} Rba8 {[%clk 0:16:08]} 31. Bc2 {[%clk 0:29:44]} Qf8  {[%clk 0:14:53]} 32. Ra1 {[%clk 0:25:52]} Bh6 {[%clk 0:14:05]} 33. Qd3  {[%clk 0:26:17]} Rc7 {[%clk 0:14:14]} 34. h5 c4 {[%clk 0:13:38]} 35. bxc4  {[%clk 0:26:49]} Nxc4 {[%clk 0:13:59]} 36. hxg6 {[%clk 0:27:15]} Ne5  {[%clk 0:10:08]} 37. Qg3 {[%clk 0:25:46]} Nxg6 {[%clk 0:06:30]} 38. Bd3 Rxc3  {[%clk 0:02:48]} 39. Nxc3 {[%clk 0:21:47]} Bf4 {[%clk 0:03:13]} 40. Qf3  {[%clk 0:52:13]} Qh6 41. g3 Bd2 {[%clk 0:19:11]} 42. e5 {[%clk 0:30:09]} Bxc3  {[%clk 0:15:49]} 43. Bxg6 {[%clk 0:29:51]} Bxa1 {[%clk 0:15:22]} 44. e6  {[%clk 0:30:05]} hxg6 45. Rxa1 {[%clk 0:29:37]} Bc8 {[%clk 0:05:20]} 46. Rb1  {[%clk 0:28:33]} Ba6 {[%clk 0:05:30]} 47. Qc3 Rc8 {[%clk 0:04:22]} 48. Qxa5  {[%clk 0:29:19]} Rc1+ {[%clk 0:04:13]} 49. Rxc1 {[%clk 0:29:32]} Qxc1+  {[%clk 0:04:41]} 50. Kh2 {[%clk 0:29:46]} Qc8 {[%clk 0:05:01]} 51. Qb6  {[%clk 0:29:51]} Kg7 {[%clk 0:04:47]} 52. a5 {[%clk 0:30:17]} Kf8  {[%clk 0:04:35]} 53. Qe3 {[%clk 0:30:36]} Kg7 {[%clk 0:04:27]} 54. Qb6  {[%clk 0:31:03]} Bc4 {[%clk 0:03:09]} 55. Qa7 {[%clk 0:31:27]} Kf8  {[%clk 0:02:07]} 56. Qe3 {[%clk 0:31:51]} g5 {[%clk 0:01:56]} 57. Qf3  {[%clk 0:29:45]} Ke8 {[%clk 0:01:50]} 58. a6 {[%clk 0:28:39]} Bxa6  {[%clk 0:01:49]} 59. Qh5+ {[%clk 0:29:00]} Kd8 {[%clk 0:02:15]} 60. Qh8+  {[%clk 0:29:03]} Kc7 {[%clk 0:02:41]} 61. Qh7 {[%clk 0:29:30]} Qe8  {[%clk 0:02:14]} 62. Kg1 {[%clk 0:29:45]} Kb6 {[%clk 0:01:48]} 0-1

[Event "SUNWAY"]
[Date "2016.12.22"]
[Round "8.15"]
[White "Swapnil, S. Dhopade"]
[Black "Domingo Nunez, Alejandro"]
[Result "1-0"]
[WhiteElo "2526"]
[BlackElo "2317"]
[ECO "E11"]
[WhiteFed "IND"]
[BlackFed "ESP"]
[FCGameId "-1042795573"]
[TimeControl "5400+30"]

1. d4 e6 2. c4 Nf6 3. Nf3 Bb4+ 4. Nbd2 b6 5. g3 Bb7 6. Bg2 O-O 7. O-O Bxd2 8.  Qxd2 d5 9. cxd5 Bxd5 10. b3 Nbd7 11. Ba3 Re8 12. Rfd1 Qc8 13. Rac1 Qa6 14. Qb2  Qb7 15. Bf1 h6 16. Ne5 Nxe5 17. dxe5 Nh7 18. f3 c5 19. e4 Bc6 20. Rd6 a5 21.  Rcd1 Nf8 22. Qd2 Rec8 23. Qe3 Rab8 24. h4 Be8 25. f4 a4 26. f5 axb3 27. axb3 Qe7  28. Bb2 Nh7 29. f6 Qf8 30. Ba6 Rc6 31. Rd8 Rxd8 32. Rxd8 gxf6 33. Bb5 Qe7 34.  Qd2 Kg7 35. exf6+ Nxf6 36. Bxc6 Bxc6 37. Rh8 1-0